[Event "NM-Senior Hurtig 2018"]
[Site "Frimurer Logen, Norway"]
[Date "2018.11.11"]
[Round "8.6"]
[White "Irandoust, Babak"]
[Black "Stubrud, Jan Magne"]
[Result "1-0"]
[TimeControl "20 + 10"]
[WhiteElo "1615"]
[BlackElo "1684"]

1. e4 {[%clk 00:20:07]} {[%emt 00:00:02]} e5 {[%clk 00:20:09]} {[%emt
00:00:03]} 2. Nf3 {[%clk 00:20:11]} {[%emt 00:00:05]} Nf6 {[%clk 00:20:18]} 3.
Nc3 {[%clk 00:20:19]} {[%emt 00:00:04]} Nc6 {[%clk 00:20:26]} {[%emt 00:00:01]}
4. d4 {[%clk 00:20:14]} {[%emt 00:00:15]} exd4 {[%clk 00:20:32]} {[%emt
00:00:04]} 5. Nxd4 {[%clk 00:20:20]} {[%emt 00:00:02]} Bb4 {[%clk 00:20:32]}
{[%emt 00:00:12]} 6. Nxc6 {[%clk 00:18:51]} {[%emt 00:01:39]} Bxc3+ {[%clk
00:20:40]} {[%emt 00:00:03]} 7. bxc3 {[%clk 00:18:56]} {[%emt 00:00:04]} bxc6
{[%clk 00:20:44]} {[%emt 00:00:07]} 8. Bd3 {[%clk 00:18:27]} {[%emt 00:00:38]}
O-O {[%clk 00:20:15]} {[%emt 00:00:40]} 9. Bg5 {[%clk 00:18:27]} {[%emt
00:00:09]} h6 {[%clk 00:20:17]} {[%emt 00:00:08]} 10. Bh4 {[%clk 00:18:35]}
{[%emt 00:00:01]} g5 {[%clk 00:20:19]} {[%emt 00:00:10]} 11. Bg3 {[%clk
00:18:43]} {[%emt 00:00:01]} d6 {[%clk 00:20:27]} {[%emt 00:00:03]} 12. O-O
{[%clk 00:18:24]} {[%emt 00:00:28]} Qe7 {[%clk 00:19:41]} {[%emt 00:00:57]} 13.
Re1 {[%clk 00:17:18]} {[%emt 00:01:16]} Bg4 {[%clk 00:18:51]} {[%emt 00:01:00]}
14. f3 {[%clk 00:16:18]} {[%emt 00:01:09]} Bd7 {[%clk 00:18:11]} {[%emt
00:00:50]} 15. e5 {[%clk 00:15:10]} {[%emt 00:01:17]} dxe5 {[%clk 00:18:13]}
{[%emt 00:00:09]} 16. Rxe5 {[%clk 00:14:45]} {[%emt 00:00:34]} Qa3 {[%clk
00:16:47]} {[%emt 00:01:38]} 17. Qd2 {[%clk 00:14:02]} {[%emt 00:00:52]} Rfe8
{[%clk 00:15:33]} {[%emt 00:01:24]} 18. Rxg5+ {[%clk 00:13:01]} {[%emt
00:01:12]} hxg5 {[%clk 00:15:25]} {[%emt 00:00:18]} 19. Qxg5+ {[%clk 00:13:08]}
{[%emt 00:00:02]} Kf8 {[%clk 00:15:32]} {[%emt 00:00:03]} 20. Qxf6 {[%clk
00:11:17]} {[%emt 00:02:01]} Qc5+ {[%clk 00:11:51]} {[%emt 00:03:51]} 21. Kf1
{[%clk 00:10:41]} {[%emt 00:00:45]} Rac8 {[%clk 00:08:23]} {[%emt 00:03:40]} 22.
Bf4 {[%clk 00:09:58]} {[%emt 00:00:51]} Re6 {[%clk 00:07:24]} {[%emt 00:01:10]}
23. Bh6+ {[%clk 00:07:27]} {[%emt 00:02:40]} Ke8 {[%clk 00:07:15]} {[%emt
00:00:21]} 24. Qh8+ {[%clk 00:07:13]} {[%emt 00:00:22]} Ke7 {[%clk 00:07:24]}
25. Qg7 {[%clk 00:05:11]} {[%emt 00:02:11]} Qh5 {[%clk 00:04:31]} {[%emt
00:03:06]} 26. Bg5+ {[%clk 00:04:29]} {[%emt 00:00:51]} Rf6 {[%clk 00:03:40]}
{[%emt 00:01:03]} 27. Qxf6+ {[%clk 00:03:18]} {[%emt 00:01:18]} Kf8 {[%clk
00:03:34]} {[%emt 00:00:18]} 28. Qh6+ {[%emt 00:00:22]} Qxh6 {[%emt 00:00:02]}
29. Bxh6+ {[%clk 00:03:03]} {[%emt 00:00:01]} Ke7 {[%clk 00:03:29]} {[%emt
00:00:26]} 30. Rb1 {[%clk 00:02:48]} {[%emt 00:00:34]} Be6 {[%clk 00:03:08]}
{[%emt 00:00:32]} 31. a3 {[%clk 00:02:44]} {[%emt 00:00:14]} Rh8 {[%clk
00:03:04]} {[%emt 00:00:14]} 32. Bf4 {[%clk 00:02:49]} {[%emt 00:00:05]} Rh5
{[%clk 00:02:25]} {[%emt 00:00:49]} 33. Rb7 {[%clk 00:02:39]} {[%emt 00:00:19]}
Ra5 {[%clk 00:02:34]} {[%emt 00:00:02]} 34. Rxc7+ {[%clk 00:02:45]} {[%emt
00:00:04]} Kf6 {[%clk 00:02:41]} {[%emt 00:00:02]} 35. Rxc6 {[%clk 00:02:40]}
{[%emt 00:00:16]} Ke7 {[%clk 00:02:39]} {[%emt 00:00:12]} 36. Ra6 {[%clk
00:02:33]} {[%emt 00:00:16]} Rc5 {[%clk 00:02:43]} {[%emt 00:00:07]} 37. Bd6+
{[%clk 00:20:00]} {[%emt 00:00:10]} 1-0

[Event "NM-Senior Hurtig 2018"]
[Site "Frimurer Logen, Norway"]
[Date "2018.11.11"]
[Round "8.7"]
[White "Kristiansen, Erling"]
[Black "Smedby, Ole"]
[Result "1-0"]
[TimeControl "20 + 10"]
[WhiteElo "2126"]
[BlackElo "1823"]

1. d4 {[%clk 00:20:06]} {[%emt 00:00:03]} Nf6 {[%clk 00:20:08]} {[%emt
00:00:01]} 2. Nf3 {[%clk 00:20:14]} {[%emt 00:00:03]} d5 {[%clk 00:20:13]}
{[%emt 00:00:05]} 3. c4 {[%clk 00:20:21]} {[%emt 00:00:03]} e6 {[%clk
00:20:20]} {[%emt 00:00:03]} 4. Nc3 {[%clk 00:20:29]} {[%emt 00:00:03]} Nbd7
{[%clk 00:19:46]} {[%emt 00:00:43]} 5. Bg5 {[%clk 00:20:21]} {[%emt 00:00:18]}
Be7 {[%clk 00:19:48]} {[%emt 00:00:08]} 6. e3 {[%clk 00:20:28]} {[%emt
00:00:03]} O-O {[%clk 00:19:44]} {[%emt 00:00:14]} 7. Qc2 {[%clk 00:20:31]}
{[%emt 00:00:08]} h6 {[%clk 00:19:47]} {[%emt 00:00:06]} 8. Bh4 {[%clk
00:20:34]} {[%emt 00:00:07]} b6 {[%clk 00:18:48]} {[%emt 00:01:09]} 9. cxd5
{[%clk 00:20:27]} {[%emt 00:00:17]} exd5 {[%clk 00:18:11]} {[%emt 00:00:47]} 10.
Rd1 {[%clk 00:20:18]} {[%emt 00:00:19]} Bb7 {[%clk 00:18:11]} {[%emt 00:00:11]}
11. Bb5 {[%clk 00:19:52]} {[%emt 00:00:35]} a6 {[%clk 00:17:56]} {[%emt
00:00:26]} 12. Ba4 {[%clk 00:19:53]} {[%emt 00:00:07]} Rc8 {[%clk 00:17:45]}
{[%emt 00:00:22]} 13. Bb3 {[%clk 00:19:43]} {[%emt 00:00:20]} c6 {[%clk
00:17:17]} {[%emt 00:00:39]} 14. O-O {[%clk 00:19:36]} {[%emt 00:00:16]} b5
{[%clk 00:16:16]} {[%emt 00:01:12]} 15. a3 {[%clk 00:17:39]} {[%emt 00:02:07]}
a5 {[%clk 00:14:40]} {[%emt 00:01:46]} 16. Ba2 {[%clk 00:16:51]} {[%emt
00:00:57]} b4 {[%clk 00:14:36]} {[%emt 00:00:13]} 17. axb4 {[%emt 00:00:05]}
axb4 18. Na4 {[%clk 00:15:21]} {[%emt 00:01:36]} Ne4 {[%clk 00:14:20]} {[%emt
00:00:27]} 19. Bxe7 Qxe7 20. Rc1 {[%clk 00:14:07]} {[%emt 00:01:18]} Ba6 {[%clk
00:13:10]} {[%emt 00:01:19]} 21. Rfd1 {[%clk 00:14:03]} {[%emt 00:00:13]} Bb5
{[%clk 00:13:12]} {[%emt 00:00:10]} 22. Nc5 {[%clk 00:14:06]} {[%emt 00:00:06]}
Ndxc5 {[%clk 00:13:05]} {[%emt 00:00:18]} 23. dxc5 {[%clk 00:14:13]} {[%emt
00:00:01]} Ra8 {[%clk 00:13:01]} {[%emt 00:00:15]} 24. Bb3 {[%clk 00:14:17]}
{[%emt 00:00:05]} Ra5 {[%clk 00:12:04]} {[%emt 00:01:08]} 25. Nd4 {[%clk
00:14:06]} {[%emt 00:00:21]} g6 {[%clk 00:11:26]} {[%emt 00:00:48]} 26. f3
{[%clk 00:13:49]} {[%emt 00:00:28]} Nf6 {[%clk 00:11:34]} {[%emt 00:00:02]} 27.
Re1 {[%clk 00:13:58]} Rfa8 {[%clk 00:10:51]} {[%emt 00:00:54]} 28. Qd2 {[%clk
00:13:39]} {[%emt 00:00:28]} R8a6 {[%clk 00:09:05]} {[%emt 00:01:57]} 29. e4
{[%clk 00:13:06]} {[%emt 00:00:42]} dxe4 {[%clk 00:08:48]} {[%emt 00:00:27]} 30.
Qxh6 {[%clk 00:13:13]} {[%emt 00:00:03]} Qd7 {[%clk 00:07:52]} {[%emt
00:01:07]} 31. Qxg6+ {[%clk 00:13:16]} {[%emt 00:00:06]} Kf8 {[%clk 00:07:41]}
{[%emt 00:00:21]} 32. Qxf6 {[%clk 00:13:23]} {[%emt 00:00:03]} exf3 {[%clk
00:07:47]} {[%emt 00:00:04]} 33. Qh8# {[%emt 00:00:09]} 1-0

[Event "NM-Senior Hurtig 2018"]
[Site "Frimurer Logen, Norway"]
[Date "2018.11.11"]
[Round "8.8"]
[White "Skogheim, Ole Morten"]
[Black "Taksrud, Vidar"]
[Result "0-1"]
[TimeControl "20 + 10"]
[WhiteElo "1909"]
[BlackElo "1861"]

1. d4 {[%clk 00:20:00]} {[%emt 00:00:04]} d5 {[%clk 00:20:00]} {[%emt
00:00:02]} 2. Nf3 {[%clk 00:20:05]} {[%emt 00:00:33]} Nf6 {[%clk 00:20:07]}
{[%emt 00:00:04]} 3. Bf4 {[%clk 00:20:12]} {[%emt 00:00:04]} c5 {[%clk
00:20:01]} {[%emt 00:00:15]} 4. c3 {[%clk 00:20:19]} {[%emt 00:00:03]} Qb6
{[%clk 00:19:32]} {[%emt 00:00:39]} 5. Qb3 {[%clk 00:19:37]} {[%emt 00:00:52]}
c4 {[%clk 00:19:21]} {[%emt 00:00:21]} 6. Qxb6 {[%clk 00:19:13]} {[%emt
00:00:35]} axb6 {[%clk 00:19:29]} {[%emt 00:00:02]} 7. Na3 {[%clk 00:18:45]}
{[%emt 00:00:38]} Nh5 {[%clk 00:17:52]} {[%emt 00:01:47]} 8. Nb5 {[%clk
00:17:49]} {[%emt 00:01:06]} Na6 {[%clk 00:17:46]} {[%emt 00:00:16]} 9. Bc7
{[%clk 00:17:20]} {[%emt 00:00:38]} Bd7 {[%clk 00:17:31]} {[%emt 00:00:26]} 10.
Nd6+ {[%clk 00:15:03]} {[%emt 00:02:27]} exd6 {[%clk 00:17:26]} {[%emt
00:00:14]} 11. Bxb6 {[%clk 00:15:11]} {[%emt 00:00:02]} Be7 {[%clk 00:17:11]}
{[%emt 00:00:25]} 12. g3 {[%clk 00:15:12]} {[%emt 00:00:09]} O-O {[%clk
00:16:49]} {[%emt 00:00:32]} 13. Bg2 {[%clk 00:15:21]} {[%emt 00:00:01]} Bd8
{[%clk 00:16:40]} {[%emt 00:00:19]} 14. Bxd8 {[%clk 00:15:29]} {[%emt
00:00:02]} Rfxd8 {[%clk 00:16:39]} {[%emt 00:00:10]} 15. O-O {[%clk 00:15:36]}
{[%emt 00:00:04]} Nf6 {[%clk 00:16:44]} {[%emt 00:00:04]} 16. Nd2 {[%clk
00:15:38]} {[%emt 00:00:09]} Re8 {[%clk 00:16:41]} {[%emt 00:00:12]} 17. e3
{[%clk 00:15:47]} {[%emt 00:00:02]} b5 {[%clk 00:16:23]} {[%emt 00:00:28]} 18.
a3 {[%clk 00:15:56]} {[%emt 00:00:02]} Bf5 {[%clk 00:16:09]} {[%emt 00:00:23]}
19. Rfe1 {[%clk 00:16:01]} {[%emt 00:00:06]} Ne4 {[%clk 00:16:09]} {[%emt
00:00:09]} 20. Bxe4 {[%clk 00:15:39]} {[%emt 00:00:32]} dxe4 {[%clk 00:16:05]}
{[%emt 00:00:14]} 21. Kg2 {[%clk 00:15:16]} {[%emt 00:00:33]} Nc7 {[%clk
00:16:03]} {[%emt 00:00:12]} 22. Rg1 {[%clk 00:15:17]} {[%emt 00:00:09]} Nd5
{[%clk 00:16:08]} {[%emt 00:00:05]} 23. Rge1 {[%clk 00:15:20]} {[%emt
00:00:07]} Re7 {[%clk 00:16:03]} {[%emt 00:00:14]} 24. Rg1 {[%clk 00:15:29]}
{[%emt 00:00:02]} Rea7 {[%clk 00:15:59]} {[%emt 00:00:13]} 25. Rac1 {[%clk
00:15:27]} {[%emt 00:00:12]} h5 {[%clk 00:15:21]} {[%emt 00:00:49]} 26. h4
{[%clk 00:15:28]} {[%emt 00:00:09]} Nf6 {[%clk 00:15:05]} {[%emt 00:00:26]} 27.
Rge1 {[%clk 00:15:30]} {[%emt 00:00:08]} Re8 {[%clk 00:14:59]} {[%emt
00:00:16]} 28. Rg1 {[%clk 00:15:18]} {[%emt 00:00:22]} Ng4 {[%clk 00:14:48]}
{[%emt 00:00:20]} 29. Rge1 {[%clk 00:15:20]} {[%emt 00:00:09]} f6 {[%clk
00:14:54]} {[%emt 00:00:04]} 30. Rh1 {[%clk 00:15:27]} {[%emt 00:00:04]} Nh6
{[%clk 00:14:26]} {[%emt 00:00:38]} 31. Rce1 {[%clk 00:15:29]} {[%emt
00:00:07]} Nf7 {[%clk 00:13:50]} {[%emt 00:00:46]} 32. Rc1 {[%clk 00:15:38]}
Nd8 {[%clk 00:13:59]} {[%emt 00:00:01]} 33. Rce1 {[%clk 00:15:47]} Nc6 {[%clk
00:14:07]} {[%emt 00:00:02]} 34. Rc1 {[%clk 00:15:54]} {[%emt 00:00:03]} Bg4
{[%clk 00:14:09]} {[%emt 00:00:08]} 35. Rhe1 {[%clk 00:15:59]} {[%emt
00:00:06]} Kh7 {[%clk 00:14:11]} {[%emt 00:00:08]} 36. Rg1 {[%clk 00:16:03]}
{[%emt 00:00:05]} Kh6 {[%clk 00:14:19]} {[%emt 00:00:02]} 37. Rge1 {[%clk
00:16:07]} {[%emt 00:00:06]} g5 {[%clk 00:14:13]} {[%emt 00:00:15]} 38. Rh1
{[%clk 00:15:25]} {[%emt 00:00:53]} Na5 {[%clk 00:14:19]} {[%emt 00:00:04]} 39.
Rhg1 {[%clk 00:14:18]} {[%emt 00:01:16]} Nb3 {[%clk 00:13:55]} {[%emt
00:00:35]} 40. Nxb3 {[%clk 00:14:27]} {[%emt 00:00:02]} cxb3 {[%clk 00:14:04]}
{[%emt 00:00:01]} 41. hxg5+ {[%clk 00:13:22]} {[%emt 00:01:14]} fxg5 {[%clk
00:14:07]} {[%emt 00:00:06]} 42. c4 {[%clk 00:13:32]} {[%emt 00:00:01]} bxc4
{[%clk 00:12:07]} {[%emt 00:02:11]} 43. Rxc4 {[%clk 00:13:40]} Rc8 {[%clk
00:12:15]} {[%emt 00:00:01]} 44. Rb4 {[%clk 00:13:35]} {[%emt 00:00:16]} Rc2
{[%clk 00:10:27]} {[%emt 00:01:57]} 45. Rxb3 {[%clk 00:13:43]} {[%emt
00:00:03]} Rf7 {[%clk 00:10:32]} {[%emt 00:00:05]} 46. Rf1 {[%clk 00:13:37]}
{[%emt 00:00:16]} Be2 {[%clk 00:10:30]} {[%emt 00:00:12]} 47. Re1 {[%clk
00:13:32]} {[%emt 00:00:15]} Bc4 {[%clk 00:09:48]} {[%emt 00:00:52]} 0-1

[Event "NM-Senior Hurtig 2018"]
[Site "Frimurer Logen, Norway"]
[Date "2018.11.11"]
[Round "8.10"]
[White "Larsen, Arild"]
[Black "Strand, Torger"]
[Result "1-0"]
[TimeControl "20 + 10"]
[WhiteElo "1858"]
[BlackElo "1607"]

1. d4 {[%clk 00:20:09]} {[%emt 00:06:30]} d5 {[%clk 00:20:06]} {[%emt
00:00:04]} 2. Nf3 {[%clk 00:20:17]} {[%emt 00:00:02]} Nf6 {[%clk 00:20:14]}
{[%emt 00:00:01]} 3. Bg5 {[%clk 00:20:26]} {[%emt 00:00:02]} c6 {[%clk
00:19:49]} {[%emt 00:00:35]} 4. e3 {[%clk 00:20:34]} {[%emt 00:00:02]} Qb6
{[%clk 00:19:49]} {[%emt 00:00:10]} 5. Nbd2 {[%clk 00:20:33]} {[%emt 00:00:11]}
Qxb2 {[%clk 00:19:35]} {[%emt 00:00:22]} 6. Bd3 {[%clk 00:20:41]} {[%emt
00:00:03]} Nbd7 {[%clk 00:19:28]} {[%emt 00:00:18]} 7. O-O {[%clk 00:20:48]}
{[%emt 00:00:03]} Qb6 {[%clk 00:19:04]} {[%emt 00:00:34]} 8. c4 {[%clk
00:20:27]} {[%emt 00:00:31]} e6 {[%clk 00:18:38]} {[%emt 00:00:36]} 9. c5
{[%clk 00:20:17]} {[%emt 00:00:20]} Qc7 {[%clk 00:18:08]} {[%emt 00:00:40]} 10.
Bxf6 {[%clk 00:20:11]} {[%emt 00:00:16]} gxf6 {[%clk 00:18:07]} {[%emt
00:00:10]} 11. Nh4 {[%clk 00:19:55]} {[%emt 00:00:27]} h5 {[%clk 00:17:42]}
{[%emt 00:00:34]} 12. f4 {[%clk 00:18:51]} {[%emt 00:01:15]} f5 {[%clk
00:17:09]} {[%emt 00:00:43]} 13. Nhf3 {[%clk 00:18:23]} {[%emt 00:00:37]} b6
{[%clk 00:16:49]} {[%emt 00:00:31]} 14. cxb6 {[%clk 00:18:21]} {[%emt
00:00:13]} axb6 {[%clk 00:16:56]} {[%emt 00:00:03]} 15. Qc2 {[%clk 00:17:52]}
{[%emt 00:00:38]} Ba6 {[%clk 00:15:18]} {[%emt 00:01:48]} 16. Rfc1 {[%clk
00:16:57]} {[%emt 00:01:05]} c5 {[%clk 00:14:00]} {[%emt 00:01:28]} 17. Bxa6
{[%clk 00:14:37]} {[%emt 00:02:30]} Rxa6 {[%clk 00:14:09]} {[%emt 00:00:01]} 18.
dxc5 {[%clk 00:12:51]} {[%emt 00:01:56]} bxc5 {[%clk 00:12:58]} {[%emt
00:01:22]} 19. Rab1 {[%clk 00:12:38]} {[%emt 00:00:22]} Bg7 {[%clk 00:12:31]}
{[%emt 00:00:36]} 20. Rb5 {[%clk 00:11:44]} {[%emt 00:01:04]} O-O {[%clk
00:12:13]} {[%emt 00:00:29]} 21. Rcb1 {[%clk 00:11:01]} {[%emt 00:00:53]} Rb8
{[%clk 00:10:43]} {[%emt 00:01:39]} 22. Rxb8+ {[%clk 00:10:11]} {[%emt
00:01:01]} Nxb8 {[%clk 00:10:48]} {[%emt 00:00:05]} 23. Rb5 {[%clk 00:08:35]}
{[%emt 00:01:46]} Nd7 {[%clk 00:09:45]} {[%emt 00:01:13]} 24. Qb1 {[%clk
00:07:25]} {[%emt 00:01:20]} c4 {[%clk 00:07:22]} {[%emt 00:02:34]} 25. Rb7
{[%clk 00:07:01]} {[%emt 00:00:33]} Qc5 {[%clk 00:06:45]} {[%emt 00:00:47]} 26.
Rxd7 {[%clk 00:06:35]} {[%emt 00:00:36]} Qxe3+ {[%clk 00:06:52]} {[%emt
00:00:02]} 27. Kh1 {[%emt 00:00:05]} Rb6 {[%clk 00:06:39]} {[%emt 00:00:21]} 28.
Qd1 {[%clk 00:05:12]} {[%emt 00:01:40]} Qxf4 {[%clk 00:05:32]} {[%emt
00:09:25]} 29. Rd8+ {[%clk 00:03:49]} Bf8 {[%clk 00:05:14]} 30. Qa4 {[%clk
00:03:04]} Rb8 {[%clk 00:04:59]} 31. Rxb8 Qxb8 {[%clk 00:05:07]} 32. Qc2 {[%clk
00:02:58]} Qb4 {[%clk 00:05:07]} 33. h3 {[%clk 00:02:48]} Bg7 {[%clk 00:04:50]}
34. a4 {[%clk 00:02:49]} e5 {[%clk 00:04:31]} 35. Qxf5 {[%clk 00:02:45]} c3
{[%clk 00:04:31]} 36. Nf1 {[%clk 00:02:39]} d4 {[%clk 00:03:57]} 37. Nxe5 Bxe5
{[%clk 00:03:28]} 38. Qxe5 {[%clk 00:02:47]} Qc4 {[%clk 00:03:00]} {[%emt
00:00:11]} 39. Ng3 {[%clk 00:02:23]} {[%emt 00:00:33]} c2 {[%clk 00:02:29]}
{[%emt 00:00:41]} 40. Qg5+ {[%clk 00:01:39]} {[%emt 00:00:54]} Kf8 {[%clk
00:02:30]} {[%emt 00:00:10]} 41. Qd8+ {[%clk 00:01:21]} {[%emt 00:00:28]} Kg7
{[%clk 00:02:39]} {[%emt 00:00:01]} 42. Qg5+ {[%clk 00:01:29]} {[%emt
00:00:02]} Kf8 {[%clk 00:20:00]} {[%emt 00:00:03]} 43. Qf4 1-0

[Event "NM-Senior Hurtig 2018"]
[Site "Frimurer Logen, Norway"]
[Date "2018.11.11"]
[Round "8.12"]
[White "Wangen, Reidar Magne"]
[Black "Jansson, Helge"]
[Result "1/2-1/2"]
[TimeControl "20 + 10"]
[WhiteElo "1733"]
[BlackElo "1712"]

1. e4 {[%clk 00:20:02]} {[%emt 00:00:06]} e6 {[%clk 00:20:07]} {[%emt
00:00:04]} 2. d4 {[%clk 00:20:09]} {[%emt 00:00:03]} d5 {[%clk 00:20:14]}
{[%emt 00:00:04]} 3. exd5 {[%clk 00:20:05]} {[%emt 00:00:14]} exd5 {[%clk
00:20:21]} {[%emt 00:00:03]} 4. Nf3 {[%clk 00:20:09]} {[%emt 00:00:05]} Bd6
{[%clk 00:20:07]} {[%emt 00:00:23]} 5. Bd3 {[%clk 00:20:07]} {[%emt 00:00:14]}
Nf6 {[%clk 00:19:46]} {[%emt 00:00:30]} 6. Bg5 {[%clk 00:20:04]} {[%emt
00:00:13]} Qe7+ {[%clk 00:19:31]} {[%emt 00:00:25]} 7. Qe2 {[%clk 00:20:02]}
{[%emt 00:00:12]} Qxe2+ {[%clk 00:19:34]} {[%emt 00:00:08]} 8. Bxe2 {[%clk
00:19:08]} {[%emt 00:01:04]} Ne4 {[%clk 00:19:37]} {[%emt 00:00:06]} 9. Be3
{[%clk 00:19:08]} {[%emt 00:00:10]} O-O {[%clk 00:19:24]} {[%emt 00:00:23]} 10.
O-O {[%clk 00:18:53]} {[%emt 00:00:24]} Bg4 {[%clk 00:18:47]} {[%emt 00:00:48]}
11. h3 {[%clk 00:18:49]} {[%emt 00:00:15]} Bxf3 {[%clk 00:18:52]} {[%emt
00:00:05]} 12. Bxf3 {[%clk 00:18:53]} {[%emt 00:00:06]} f5 {[%clk 00:18:56]}
{[%emt 00:00:05]} 13. Bxe4 {[%clk 00:17:20]} {[%emt 00:01:44]} dxe4 {[%clk
00:18:44]} {[%emt 00:00:21]} 14. Nc3 {[%clk 00:15:55]} {[%emt 00:01:35]} Nc6
{[%clk 00:18:33]} {[%emt 00:00:21]} 15. Nb5 {[%clk 00:14:46]} {[%emt 00:01:20]}
Rad8 {[%clk 00:18:08]} {[%emt 00:00:34]} 16. Nxd6 {[%clk 00:14:35]} {[%emt
00:00:21]} Rxd6 {[%clk 00:18:11]} {[%emt 00:00:07]} 17. c3 {[%clk 00:14:26]}
{[%emt 00:00:19]} f4 {[%clk 00:18:16]} {[%emt 00:00:04]} 18. Bd2 {[%clk
00:14:25]} {[%emt 00:00:12]} Rd7 {[%clk 00:17:57]} {[%emt 00:00:30]} 19. Rfe1
{[%clk 00:14:09]} {[%emt 00:00:26]} Re7 {[%clk 00:17:51]} {[%emt 00:00:15]} 20.
Rad1 {[%clk 00:14:00]} {[%emt 00:00:19]} g5 {[%clk 00:17:15]} {[%emt 00:00:47]}
21. Bc1 {[%clk 00:13:34]} {[%emt 00:00:36]} Rf5 {[%clk 00:15:59]} {[%emt
00:01:25]} 22. Re2 {[%clk 00:11:12]} {[%emt 00:02:32]} f3 {[%clk 00:15:29]}
{[%emt 00:00:40]} 23. gxf3 {[%clk 00:10:52]} {[%emt 00:00:30]} Rxf3 {[%clk
00:15:37]} {[%emt 00:00:03]} 24. Rde1 {[%clk 00:10:33]} {[%emt 00:00:29]} Rxh3
{[%clk 00:15:28]} {[%emt 00:00:19]} 25. Rxe4 {[%clk 00:10:38]} {[%emt
00:00:05]} Rxe4 {[%clk 00:15:19]} {[%emt 00:00:19]} 26. Rxe4 {[%clk 00:10:46]}
h6 {[%clk 00:14:54]} {[%emt 00:00:36]} 27. Re8+ {[%clk 00:09:19]} {[%emt
00:01:37]} Kf7 {[%clk 00:14:57]} {[%emt 00:00:07]} 28. Rc8 {[%clk 00:09:26]}
{[%emt 00:00:02]} Rd3 {[%clk 00:14:13]} {[%emt 00:00:54]} 29. Be3 {[%clk
00:09:33]} {[%emt 00:00:04]} Ke7 {[%clk 00:12:52]} {[%emt 00:01:31]} 30. Rxc7+
{[%clk 00:09:32]} {[%emt 00:00:11]} Kd6 {[%clk 00:12:56]} {[%emt 00:00:05]} 31.
Rxb7 {[%clk 00:09:32]} {[%emt 00:00:10]} Rd1+ {[%clk 00:12:47]} {[%emt
00:00:20]} 32. Kg2 {[%clk 00:09:40]} {[%emt 00:00:01]} Ra1 {[%clk 00:12:54]} 33.
Rh7 {[%clk 00:09:31]} {[%emt 00:00:21]} Rxa2 {[%clk 00:13:01]} {[%emt
00:00:03]} 34. Rxh6+ {[%clk 00:09:37]} {[%emt 00:00:04]} Kd5 {[%clk 00:13:05]}
{[%emt 00:00:06]} 35. b3 {[%clk 00:09:21]} {[%emt 00:00:26]} Na5 {[%clk
00:12:49]} {[%emt 00:00:26]} 36. c4+ {[%clk 00:09:18]} {[%emt 00:00:13]} Ke4
{[%clk 00:12:49]} {[%emt 00:00:11]} 37. d5 {[%clk 00:08:14]} {[%emt 00:01:13]}
Nxb3 {[%clk 00:12:49]} {[%emt 00:00:10]} 38. d6 {[%clk 00:08:19]} {[%emt
00:00:06]} Ra1 {[%clk 00:12:28]} {[%emt 00:00:31]} 39. c5 {[%clk 00:07:49]}
{[%emt 00:00:39]} Nxc5 {[%clk 00:10:06]} {[%emt 00:02:32]} 40. Bxc5 {[%clk
00:07:56]} {[%emt 00:00:04]} a5 {[%clk 00:10:10]} {[%emt 00:00:06]} 41. d7
{[%clk 00:08:03]} {[%emt 00:00:03]} Rd1 {[%clk 00:10:16]} {[%emt 00:00:03]} 42.
Rd6 {[%clk 00:08:11]} {[%emt 00:00:02]} 1/2-1/2